Cogmind - Beta 10.2 @@@ ROGUE MODE // 2022.02.01 @ 23:34:16 Player: Avari3l Result: Destroyed by D-53 Grenadier with Mini Grenade Launcher Performance ------------- Evolutions (0) 0 Regions Visited (4) 800 Robots Destroyed (17) 85 Value Destroyed (473) 473 Prototype IDs (1) 20 Alien Tech Used (0) 0 Bonus (0) 0 TOTAL SCORE: 1378 Bonus ------- None Cogmind --------- Core Integrity 0/250 Matter 279/300 Energy 208/250 System Corruption 0% Temperature Cool (0) Movement Treading (160) Location -9/Mines Parts ------- > --- POWER (1) -------- Ion Engine > --- PROPULSION (2) --- Light Treads Light Treads > --- UTILITY (2) ------ Large Storage Unit Experimental Sensor Array > --- WEAPON (2) ------- Assault Rifle > --- INVENTORY (10) --- Ion Engine Thermal Generator Heat Sink Small Storage Unit Large Storage Unit Sensor Array Utility Shielding Heavy Armor Plating Hammer Peak State ------------ > --- POWER ------------ Ion Engine > --- PROPULSION ------- Light Treads Light Treads > --- UTILITY ---------- Small Storage Unit Large Storage Unit > --- WEAPON ----------- Particle Gun Ion Cannon > --- INVENTORY -------- Ion Engine Light Treads Light Treads Heat Sink Large Storage Unit Sensor Array Experimental Sensor Array Utility Shielding Heavy Armor Plating Assault Rifle Hammer [Rating: 12] Favorites ----------- Power Ion Engine Engine Ion Engine Propulsion Light Treads Treads Light Treads Leg Aluminum Leg Utility Small Storage Unit Device Experimental Sensor Array Storage Small Storage Unit Weapon Assault Rifle Energy Gun Particle Gun Energy Cannon Ion Cannon Ballistic Gun Assault Rifle Build | -11 -10 -10 -10 -9 ------- Run | Scr Mat Min Exi Min Slots Evolved . | . . . . . Power . | . . . . . Propulsion . | . . . . . Utility . | . . . . . Weapon . | . . . . . Parts Attached 17 | . 7 6 1 3 Power 2 | . 2 . . . Engine 2 | . 2 . . . Core . | . . . . . Reactor . | . . . . . Propulsion 5 | . 2 1 . 2 Treads 5 | . 2 1 . 2 Leg . | . . . . . Wheel . | . . . . . Hover . | . . . . . Flight . | . . . . . Utility 5 | . 2 1 1 1 Device 1 | . . . . 1 Storage 4 | . 2 1 1 . Processor . | . . . . . Hackware . | . . . . . Protection . | . . . . . Artifact . | . . . . . Weapon 5 | . 1 4 . . Energy Gun 3 | . 1 2 . . Energy Cannon 1 | . . 1 . . Ballistic Gun 1 | . . 1 . . Ballistic Cannon . | . . . . . Launcher . | . . . . . Special Weapon . | . . . . . Impact Weapon . | . . . . . Slashing Weapon . | . . . . . Piercing Weapon . | . . . . . Special Melee Weapon . | . . . . . Unidentified Prototypes 1 | . . . . 1 Parts Lost 8 | . 3 2 . 3 Power 2 | . 2 . . . Propulsion 2 | . . . . 2 Utility . | . . . . . Weapon 4 | . 1 2 . 1 Highest Loss Streak 3 | . 1 1 . 3 Average Slot Usage (%) 98 | . 96 99 100 100 Engine 13 | . 13 14 14 14 Treads 24 | . 19 28 28 28 Leg 3 | . 8 . . . Storage 26 | . 25 27 28 28 Energy Gun 4 | . 2 14 . . Energy Cannon 6 | . . 5 14 14 Ballistic Gun 16 | . 25 8 14 14 Naked Turns . | . . . . . Heaviest Build 33 | 10 30 33 33 33 Greatest Support 40 | 20 40 40 40 40 Greatest Overweight (x) 1 | . 1 . . . Average Overweight (x) . | . . . . . Largest Inventory Capacity 12 | . 12 12 12 12 Average Capacity 11 | . 10 11 12 11 Most Carried 12 | . 12 12 12 12 Average Carried 10 | . 8 11 12 11 Final Capacity 12 | 6 12 12 12 10 Final Carried 12 | 6 11 12 12 10 Class Distribution -------------------- 100% | Mutant Dominant Class ---------------- Mutant | -10/Materials Mutant | -10/Mines Mutant | -10/Exiles Mutant | -9/Mines Resources | -11 -10 -10 -10 -9 ----------- Run | Scr Mat Min Exi Min Matter Collected 510 | 200 225 81 . 4 Remotely . | . . . . . Salvage Created 545 | . 409 136 . . Parts 30 | . 23 7 . . Haulers Intercepted . | . . . . . Recyclers Shooed . | . . . . . Parts Field Recycled . | . . . . . Retrieved Matter . | . . . . . Parts Self-Destructed . | . . . . . Prevented . | . . . . . Kills | -11 -10 -10 -10 -9 ------- Run | Scr Mat Min Exi Min Combat Hostiles Destroyed 17 | . 12 5 . . Guns 17 | . 12 5 . . Classes Destroyed 2 | . 2 . . . Swarmer 6 | . 3 3 . . Grunt 11 | . 9 2 . . Best Kill Streak 4 | . 4 3 . . Combat Bots Only 4 | . 4 3 . . Max Kills in Single Turn 1 | . 1 1 . . Gunslinging . | . . . . . Exploded . | . . . . . Melee . | . . . . . Uniques/NPCs Destroyed . | . . . . . Combat | -11 -10 -10 -10 -9 -------- Run | Scr Mat Min Exi Min Damage Taken 1355 | . 615 284 . 456 Core 266 | . 97 53 . 116 Absorbed by Shields . | . . . . . Core Remaining (%) 100 | 100 . . . . Volleys Fired 62 | . 47 15 . . Largest 2 | . 2 2 . . Hottest 105 | . 85 105 . . Shots Fired 112 | . 82 30 . . Gun 112 | . 82 30 . . Cannon . | . . . . . Launcher . | . . . . . Special . | . . . . . Kinetic 85 | . 76 9 . . Thermal 27 | . 6 21 . . Explosive . | . . . . . Electromagnetic . | . . . . . Robot Hit Streak 17 | . 17 13 . . Robot Miss Streak 2 | . 2 2 . . Penetration Max . | . . . . . Secondary Targets 2 | . 1 1 . . Max Gunslinging Chain 1 | . 1 1 . . Shots Hit Robots 83 | . 62 21 . . Core Hits 31 | . 23 8 . . Critical Hits . | . . . . . Critical Kills . | . . . . . Critical Parts Destroyed . | . . . . . Melee Attacks . | . . . . . Impact . | . . . . . Slashing . | . . . . . Piercing . | . . . . . Sneak Attacks . | . . . . . Combat Hostiles . | . . . . . Follow-up Attacks . | . . . . . Damage Inflicted 957 | . 671 286 . . Guns 957 | . 671 286 . . Cannons . | . . . . . Explosions . | . . . . . Melee . | . . . . . Ramming . | . . . . . Kinetic 697 | . 608 89 . . Thermal 260 | . 63 197 . . Explosive . | . . . . . Electromagnetic . | . . . . . Impact . | . . . . . Slashing . | . . . . . Piercing . | . . . . . Highest Corruption . | . . . . . Average Corruption . | . . . . . Corruption Purged . | . . . . . Overload Shots . | . . . . . Overflow Damage . | . . . . . Projectiles . | . . . . . Explosions . | . . . . . Melee . | . . . . . Knockbacks . | . . . . . Impact . | . . . . . Kinetic . | . . . . . Secondary . | . . . . . Self-Inflicted Damage . | . . . . . Shots . | . . . . . Rammed 1 | . . 1 . . Targets Rammed 1 | . . 1 . . Kicked . | . . . . . Crushed . | . . . . . Highest Temperature 270 | . 74 270 . . Average Temperature 61 | . 22 91 . . Received Heat Transfer 246 | . 183 63 . . Siege Activations . | . . . . . Robots Corrupted . | . . . . . Combat Hostiles . | . . . . . Parts Fried . | . . . . . Impact Corruptions . | . . . . . Robots Melted . | . . . . . Combat Hostiles . | . . . . . Parts Melted . | . . . . . Heat Transferred 607 | . 148 459 . . Parts Sabotaged . | . . . . . Parts Stolen . | . . . . . Parts Stripped . | . . . . . Power Chain Reactions . | . . . . . Missiles Intercepted . | . . . . . Alert | -11 -10 -10 -10 -9 ------- Run | Scr Mat Min Exi Min Peak Influence 203 | . 203 178 . . Initial 63 | . . 63 . . Average 80 | . 83 101 . . Maximum Alert Level 1 | . 1 . . . Low Security (%) 98 | . 96 100 . 100 Level 1 1 | . 3 . . . Level 2 . | . . . . . Level 3 . | . . . . . Level 4 . | . . . . . Level 5 . | . . . . . High Security . | . . . . . Max Security . | . . . . . Squads Dispatched 3 | . 3 . . . Investigation 1 | . 1 . . . Extermination . | . . . . . Reinforcement 2 | . 2 . . . Assault . | . . . . . Garrison . | . . . . . Intercept . | . . . . . Construction Impeded . | . . . . . Haulers Reinforced . | . . . . . Stealth | -11 -10 -10 -10 -9 --------- Run | Scr Mat Min Exi Min Distress Signals 3 | . 3 . . . Communications Jammed . | . . . . . Distress Signals . | . . . . . Times Spotted 34 | . 26 6 . 2 Peak Tracking Total 6 | . 6 3 . 2 Tactical Retreats 2 | . 1 1 . . Traps | -11 -10 -10 -10 -9 ------- Run | Scr Mat Min Exi Min Traps Triggered . | . . . . . Indirectly . | . . . . . Trap Hack Attempts . | . . . . . Triggered . | . . . . . Disarmed . | . . . . . Reprogrammed . | . . . . . Reused . | . . . . . Traps Extracted . | . . . . . Installed . | . . . . . Triggered . | . . . . . Machines | -11 -10 -10 -10 -9 ---------- Run | Scr Mat Min Exi Min Machines Disabled . | . . . . . Max in Single Turn . | . . . . . Machines Sabotaged . | . . . . . Garrisons Compromised . | . . . . . Overloaded Fab Kills . | . . . . . Fab Network Shutdowns . | . . . . . Hacking | -11 -10 -10 -10 -9 --------- Run | Scr Mat Min Exi Min Machines Accessed 7 | . 5 1 1 . Terminals 5 | . 5 . . . Fabricators . | . . . . . Repair Stations . | . . . . . Recycling Units . | . . . . . Scanalyzers . | . . . . . Garrison Access . | . . . . . Total Hacks 15 | . 13 1 1 . Successful 7 | . 5 1 1 . Failed 8 | . 8 . . . Catastrophic 1 | . 1 . . . Database Lockouts . | . . . . . Manual 5 | . 5 . . . Terminals 13 | . 13 . . . Fabricators . | . . . . . Repair Stations . | . . . . . Recycling Units . | . . . . . Scanalyzers . | . . . . . Garrison Access . | . . . . . Terminal Hacks 4 | . 2 1 1 . Record 1 | . . . 1 . Open Door 1 | . . 1 . . Locate Traps 1 | . 1 . . . Maintenance Status 1 | . 1 . . . Fabricator Hacks . | . . . . . Repair Station Hacks . | . . . . . Recycling Unit Hacks . | . . . . . Scanalyzer . | . . . . . Garrison Access Hacks . | . . . . . Unauthorized Hacks 3 | . 3 . . . Terminals 3 | . 3 . . . Botnet 3 | . 3 . . . Fabricators . | . . . . . Repair Stations . | . . . . . Recycling Units . | . . . . . Scanalyzers . | . . . . . Garrison Access . | . . . . . Data Cores Recovered . | . . . . . Used . | . . . . . Hacking Detections 5 | . 5 . . . Full Trace Events 1 | . 1 . . . Feedback Events . | . . . . . Feedback Blocked . | . . . . . Robot Schematics Acquired . | . . . . . Robots Built . | . . . . . Matter . | . . . . . Time . | . . . . . Total Robot Build Rating . | . . . . . Part Schematics Acquired . | . . . . . Parts Built . | . . . . . Matter . | . . . . . Time . | . . . . . Total Part Build Rating . | . . . . . Parts Repaired . | . . . . . Time . | . . . . . Parts Recycled . | . . . . . Recycled Matter . | . . . . . Retrieved Matter . | . . . . . Retrieved Components . | . . . . . Parts Scanalyzed . | . . . . . Part Schematics Acquired . | . . . . . Parts Damaged . | . . . . . Bothacking | -11 -10 -10 -10 -9 ------------ Run | Scr Mat Min Exi Min Used RIF Installer . | . . . . . Robots Hacked . | . . . . . Non-combat . | . . . . . Combat . | . . . . . Robot Hacks Applied . | . . . . . Relay Couplers Released . | . . . . . Robots Rewired . | . . . . . Allies Hacked . | . . . . . Hacks Repelled . | . . . . . Allies | -11 -10 -10 -10 -9 -------- Run | Scr Mat Min Exi Min Total Allies 2 | . . . . 2 Largest Group 2 | . . . . 2 Highest-Rated Group 51 | . . . . 51 Highest-Rated Ally 31 | . . . . 31 Total Orders . | . . . . . Ally Attacks . | . . . . . Total Damage . | . . . . . Kills . | . . . . . Allies Corrupted . | . . . . . Allies Melted . | . . . . . Intel | -11 -10 -10 -10 -9 ------- Run | Scr Mat Min Exi Min Robot Analysis Total . | . . . . . Derelict Logs Recovered 2 | . . 1 . 1 Drone Launches . | . . . . . Drone Recoveries . | . . . . . Exploration | -11 -10 -10 -10 -9 ------------- Run | Scr Mat Min Exi Min Turns Passed 2012 | . 745 599 484 184 Spaces Moved 1107 | 1 361 330 302 113 Core . | . . . . . Treads 971 | . 226 330 302 113 Legs 136 | 1 135 . . . Wheels . | . . . . . Hover . | . . . . . Flight . | . . . . . Fastest Speed 120 | 120 120 160 160 160 Average Speed 156 | 120 148 160 160 160 Slowest Speed 160 | 120 160 160 160 160 Overloaded Moves . | . . . . . Propulsion Burnouts . | . . . . . Robots Hopped . | . . . . . Cave-ins Triggered . | . . . . . Exploration Rate (%) 46 | 2 73 52 78 28 Regions Visited 4 Branch Regions 3 Pre-discovered Areas 2 | . . 1 1 . Known Exits Taken . | . . . . . Unknown Exits Taken 4 | 1 1 1 1 . Scrap Searched 2 | . . 2 . . Spaces Dug . | . . . . . Terrain Destroyed . | . . . . . Melee . | . . . . . Projectile . | . . . . . AOE . | . . . . . Terrain Rammed . | . . . . . Walls Destroyed . | . . . . . Machines Disabled . | . . . . . Actions | -11 -10 -10 -10 -9 --------- Run | Scr Mat Min Exi Min Total 1287 | . 496 372 303 116 Wait 71 | . 61 10 . . Move 1103 | . 360 329 301 113 Hop . | . . . . . Pick Up 18 | . 13 5 . . Fast Attach 5 | . 3 2 . . Attach 7 | . 3 2 . 2 Detach . | . . . . . Swap 5 | . 1 2 1 1 Drop 15 | . 8 6 1 . Fire 62 | . 47 15 . . Melee . | . . . . . Ram . | . . . . . Kick . | . . . . . Crush 1 | . . 1 . . Escape Stasis . | . . . . . Rewire . | . . . . . Trap . | . . . . . Miscellaneous . | . . . . . Route ------- -11/Scrapyard -10/Materials (discovered 4 exits: [*Mat x2] / *Min x2) -10/Mines (discovered 2 exits: [*Mat] / *Exi) -10/Exiles -9/Mines History --------- Turn | Location | Event 1 | -11/Scrapyard | Discovered new exit (range 0) 1 | -11/Scrapyard | Entered Materials 146 | -10/Materials | Discovered new exit (range 10) 305 | -10/Materials | Build established: Mutant 401 | -10/Materials | Discovered new exit (range 10) 536 | -10/Materials | Discovered new exit (range 14) 670 | -10/Materials | Discovered new exit (range 7) 746 | -10/Materials | Entered Mines 749 | -10/Mines | Met a Derelict bent on vengeance 785 | -10/Mines | Core integrity fell below 50% 797 | -10/Mines | Deemed a non-threat by the Exiles lab entrance 799 | -10/Mines | Discovered new exit (range 5) 961 | -10/Mines | Learned 4 Materials zone layouts 982 | -10/Mines | Found a damaged Exp. Sensor Array with a note attached 985 | -10/Mines | Found Prototype Device 1077 | -10/Mines | Met a Derelict who couldn't figure out how to use a Trap Extractor 1180 | -10/Mines | Discovered new exit (range 15) 1202 | -10/Mines | Learned location of Storage (-7) 1345 | -10/Mines | Entered Exiles 1384 | -10/Exiles | Met 8R-AWN 1411 | -10/Exiles | Met EX-HEX 1461 | -10/Exiles | Met EX-BIN 1483 | -10/Exiles | Met EX-DEC 1494 | -10/Exiles | Learned location of Zion (-7) 1578 | -10/Exiles | Visited The Gauntlet 1811 | -10/Exiles | Discovered new exit (range 14) 1829 | -10/Exiles | Entered Mines 1855 | -9/Mines | Learned Materials terminal intel 1982 | -9/Mines | Assembled infested the area 2003 | -9/Mines | Core integrity fell below 20% 2012 | -9/Mines | Identified Exp. Sensor Array 2013 | -9/Mines | Destroyed by D-53 Grenadier with Mini Grenade Launcher Last Messages --------------- GOAL=ESCAPE 01850_ A pair of derelicts emerge from the shadows: "We're, um, lost. You wouldn't happen to know the way out of here, would you?" 01855_ Acquired derelict log, extracted data. Data stored: Materials terminal intel. 01888_ K-01 Serf collects debris. 01900_ K-01 Serf cleans the Plasma Injector. 01982_ ALERT: Infestation in the mines, dispatching Demolisher response squad. 01992_ C-30 ARC bursts open, deploying its payload. 01992_ D-53 Grenadier unfolds itself. 01992_ K-01 Serf destroyed. 01992_ FS-QRM(g) destroyed. 01992_ R3-N4U(z) destroyed. 01994_ Acquired 4 matter. 02002_ The unstable cave ceiling collapses. 02010_ Lgt. Treads destroyed. 02012_ The unstable cave ceiling collapses. 02012_ Ion Cannon destroyed. 02012_ Identified Exp. Sensor Array. Map ----- +----------------------------------------------------+ | ?????????????????????????????????????????????????? | | ???????????????????????????????????????????###???? | | ??????????????????????????????????????????? #???? | | ???????????????????????????????????????????# #???# | | ?????????????????????????????????????##????# #??## | | ?????????????????????????????????????? #???# #### | | ?????????????????????????????????????# #???# ? | | ?????????????????????????????????????#?#???# ### | | ?????????????????????????????????????#?#???# #?# | | ?????????????????????????????????????#?#??## #?## | | ?????????????????????????????????????#?#?## #??## | | ????????????????????????????????######?### ##### | | ????????????????????????????????# ##? # | | ???????????????????????????????## ??? # | | ???????????#########??????????## ##### # | | ??????????## ##?????????# ###???# # | | ??????????# # ##????????# ##?????# # | | ??????????# #????????## ##??????# # | | ?????# #### ##????????## ###???????# # | | ?????#"%" # ##???????## ##?????????# # | | ?????# " # #??##?### #??????????# # | | ?????#### dd ## ### ##??????????# | | ????????## ## #???????????### | | ?????????###?# ##????????????? | | ?????????????## ##???????????? | | ??????????????## @ #???????????? | | ???????????????## #???????????? | | ????????????????## ##???????????? | | ?????????????????## #######????????????? | | ??????????????????## # ##??????????????????? | | ???????????????????### ### ###???????????????????? | | ?????????????????????##???##?????????????????????? | | ?????????????????????????????????????????????????? | | | | | | | | | | | | | | | | | | | | | | | | | | | | | | | | | | | +----------------------------------------------------+ Best States ------------- Heat Dissipation 25 Energy Generation 10 Energy Capacity 250 Matter Stores 300 Matter Capacity 300 Sight Range 16 Terrain Scan Density 10 Evasion (%) 40 Recoil Reduction 2 Item Schematics ----------------- None Robot Schematics ------------------ None Fabricated ------------ Nothing Alien Tech Used ----------------- None Achievements -------------- None Challenges ------------ None Game ------ Seed CannonDisruptorNegator Manual? 0 Play Time 00:20:20 Cumulative 75.1 hours Start 2022.02.01 @ 23:13:46 End 2022.02.01 @ 23:34:16 Sessions 1 Manual Loads 0 Difficulty Rogue Special Mode None Game No. 44 Rogue 44 Adventurer 0 Explorer 0 Win Type - Total 1 Types 1/0/0/0/0/0/0/0/0 Lore% 32 Gallery% 46 Achievement% 32 Wizard Run 0 Options --------- ASCII 0 Keyboard 0 Movement Numpad Keybinds 0 Fullscreen 1 Font 18/Smallcaps Map View 76x50 Tactical HUD 1 Map Filters NONE Filters NONE Steam 1 RUN: 27a1551b-541e-4f9f-b4f1-cbd12e3c192f